[Event "Late-Titled-Tuesday-Blitz-January-30-2024"]
[Site "Chess.com"]
[Date "2024.01.30"]
[Round "4"]
[White "The_Straightforward_Rook"]
[Black "GianmarcoVaR"]
[Result "0-1"]
[WhiteElo "2418"]
[BlackElo "2664"]
[TimeControl "180+1"]
[EndTime "14:38:08 PST"]
[Termination "GianmarcoVaR won by resignation"]

1. e4 {[%clk 0:03:00.9]} 1... c5 {[%clk 0:03:00]} 2. c3 {[%clk 0:03:00.8]} 2...
Nf6 {[%clk 0:02:59]} 3. e5 {[%clk 0:02:59.9]} 3... Nd5 {[%clk 0:02:59.1]} 4. Nf3
{[%clk 0:03:00.8]} 4... Nc6 {[%clk 0:02:58.2]} 5. Bc4 {[%clk 0:03:01.4]} 5...
Nb6 {[%clk 0:02:58.2]} 6. Bb3 {[%clk 0:03:02]} 6... d5 {[%clk 0:02:57.3]} 7.
exd6 {[%clk 0:03:01.2]} 7... Qxd6 {[%clk 0:02:57]} 8. Na3 {[%clk 0:02:59.1]}
8... Be6 {[%clk 0:02:56.4]} 9. O-O {[%clk 0:02:56.1]} 9... Bxb3 {[%clk
0:02:56.3]} 10. Qxb3 {[%clk 0:02:51.5]} 10... e6 {[%clk 0:02:57.2]} 11. d4
{[%clk 0:02:41.1]} 11... cxd4 {[%clk 0:02:53.4]} 12. Nb5 {[%clk 0:02:40.1]}
12... Qd7 {[%clk 0:02:51]} 13. Bf4 {[%clk 0:02:36.6]} 13... Nd5 {[%clk
0:02:48.4]} 14. Bg3 {[%clk 0:02:29]} 14... dxc3 {[%clk 0:02:39.9]} 15. Rad1
{[%clk 0:02:28.2]} 15... Rc8 {[%clk 0:02:24]} 16. bxc3 {[%clk 0:01:45.7]} 16...
a6 {[%clk 0:02:17.8]} 17. c4 {[%clk 0:01:14.5]} 17... Na5 {[%clk 0:02:16.1]} 18.
Qd3 {[%clk 0:01:10.3]} 18... Nxc4 {[%clk 0:02:15.4]} 19. Na7 {[%clk 0:00:23.2]}
19... Nb2 {[%clk 0:02:13.8]} 20. Qb3 {[%clk 0:00:16.1]} 20... Nxd1 {[%clk
0:02:12.9]} 21. Nxc8 {[%clk 0:00:16.6]} 21... N1c3 {[%clk 0:02:11.2]} 22. Nb6
{[%clk 0:00:13.4]} 22... Ne2+ {[%clk 0:02:11.3]} 23. Kh1 {[%clk 0:00:12.5]}
23... Nxg3+ {[%clk 0:02:12.2]} 24. fxg3 {[%clk 0:00:10.7]} 24... Nxb6 {[%clk
0:02:13.1]} 25. Qxb6 {[%clk 0:00:11.2]} 25... f6 {[%clk 0:01:58.9]} 26. h4
{[%clk 0:00:10.7]} 26... Be7 {[%clk 0:01:57]} 27. Re1 {[%clk 0:00:10.1]} 27...
e5 {[%clk 0:01:57]} 28. Qb3 {[%clk 0:00:10.4]} 28... Qb5 {[%clk 0:01:27.2]} 29.
Rd1 {[%clk 0:00:11]} 29... Qxb3 {[%clk 0:01:26]} 30. axb3 {[%clk 0:00:11.9]}
30... Kf7 {[%clk 0:01:24.4]} 31. Rd7 {[%clk 0:00:12.5]} 31... Rb8 {[%clk
0:01:24.9]} 32. Nd2 {[%clk 0:00:12.1]} 32... Ke6 {[%clk 0:01:25.3]} 33. Rc7
{[%clk 0:00:12.3]} 33... Kd6 {[%clk 0:01:25.5]} 34. Rc2 {[%clk 0:00:12.5]} 34...
b5 {[%clk 0:01:25.9]} 35. Ne4+ {[%clk 0:00:12.8]} 35... Kd5 {[%clk 0:01:26.4]}
36. Nc3+ {[%clk 0:00:10.1]} 36... Ke6 {[%clk 0:01:27.3]} 37. Ne4 {[%clk
0:00:10.4]} 37... a5 {[%clk 0:01:22]} 38. g4 {[%clk 0:00:10.5]} 38... a4 {[%clk
0:01:21.9]} 39. bxa4 {[%clk 0:00:11]} 39... bxa4 {[%clk 0:01:22.8]} 40. Ng3
{[%clk 0:00:10.5]} 40... a3 {[%clk 0:01:22.9]} 41. Nf5 {[%clk 0:00:09.6]} 41...
Rb2 {[%clk 0:01:22.7]} 42. Rc6+ {[%clk 0:00:09.3]} 42... Kd7 {[%clk 0:01:21.3]}
43. Ra6 {[%clk 0:00:08.5]} 43... a2 {[%clk 0:01:21.1]} 44. Ra7+ {[%clk
0:00:08.7]} 44... Kd8 {[%clk 0:01:21.2]} 45. Kh2 {[%clk 0:00:08.7]} 45... Bc5
{[%clk 0:01:18.2]} 46. Nxg7 {[%clk 0:00:09.1]} 46... Bxa7 {[%clk 0:01:17.9]} 0-1

[Event "Late-Titled-Tuesday-Blitz-January-30-2024"]
[Site "Chess.com"]
[Date "2024.01.30"]
[Round "4"]
[White "SpeedofLight0"]
[Black "Mikhail_Bryakin"]
[Result "1-0"]
[WhiteElo "3022"]
[BlackElo "2830"]
[TimeControl "180+1"]
[EndTime "14:38:10 PST"]
[Termination "SpeedofLight0 won by resignation"]

1. d4 {[%clk 0:03:00.9]} 1... d6 {[%clk 0:02:38.7]} 2. Nf3 {[%clk 0:03:00.4]}
2... Nf6 {[%clk 0:02:35.9]} 3. Nc3 {[%clk 0:03:00]} 3... Nbd7 {[%clk 0:02:31.8]}
4. e4 {[%clk 0:02:59.1]} 4... e5 {[%clk 0:02:32]} 5. Bc4 {[%clk 0:02:59.8]} 5...
Be7 {[%clk 0:02:29.6]} 6. O-O {[%clk 0:03:00.4]} 6... O-O {[%clk 0:02:30]} 7. a4
{[%clk 0:03:00.8]} 7... c6 {[%clk 0:02:30.4]} 8. h3 {[%clk 0:03:01.2]} 8... Qc7
{[%clk 0:02:30.7]} 9. a5 {[%clk 0:02:59.2]} 9... h6 {[%clk 0:02:24]} 10. Re1
{[%clk 0:02:57.7]} 10... Rd8 {[%clk 0:02:23]} 11. Be3 {[%clk 0:02:54.1]} 11...
Nf8 {[%clk 0:02:23]} 12. Bd3 {[%clk 0:02:42.1]} 12... Ng6 {[%clk 0:02:22.1]} 13.
Ne2 {[%clk 0:01:57.9]} 13... d5 {[%clk 0:02:14.1]} 14. Nxe5 {[%clk 0:01:57.4]}
14... Nxe5 {[%clk 0:02:06.1]} 15. dxe5 {[%clk 0:01:58.3]} 15... Nxe4 {[%clk
0:02:06]} 16. f4 {[%clk 0:01:56.3]} 16... f5 {[%clk 0:01:55]} 17. c4 {[%clk
0:01:50.5]} 17... Be6 {[%clk 0:01:48.1]} 18. Nd4 {[%clk 0:01:50.6]} 18... Qd7
{[%clk 0:01:48.6]} 19. Nxe6 {[%clk 0:01:46.2]} 19... Qxe6 {[%clk 0:01:48.2]} 20.
Qc2 {[%clk 0:01:46.6]} 20... a6 {[%clk 0:01:33.3]} 21. Bb6 {[%clk 0:01:35.5]}
21... Rd7 {[%clk 0:01:31]} 22. cxd5 {[%clk 0:01:33.4]} 22... cxd5 {[%clk
0:01:29]} 23. Rac1 {[%clk 0:01:33.5]} 23... g5 {[%clk 0:01:17.4]} 24. Qb3 {[%clk
0:01:30.2]} 24... Kf7 {[%clk 0:01:08.1]} 25. Rf1 {[%clk 0:01:24.3]} 25... gxf4
{[%clk 0:01:01]} 26. Rxf4 {[%clk 0:01:25.2]} 26... Kg7 {[%clk 0:00:14.2]} 27.
Rcf1 {[%clk 0:01:20.3]} 27... Rf8 {[%clk 0:00:13.3]} 28. Bxe4 {[%clk 0:01:18.9]}
28... fxe4 {[%clk 0:00:13.4]} 29. Qg3+ {[%clk 0:01:19]} 29... Kh7 {[%clk
0:00:08.3]} 30. Rxf8 {[%clk 0:01:18.8]} 30... Bxf8 {[%clk 0:00:08.5]} 31. Rxf8
{[%clk 0:01:19.7]} 31... Rg7 {[%clk 0:00:08.7]} 32. Qf4 {[%clk 0:01:12.4]} 32...
Qxh3 {[%clk 0:00:05.3]} 33. Qf5+ {[%clk 0:01:12.6]} 33... Qxf5 {[%clk
0:00:05.2]} 34. Rxf5 {[%clk 0:01:13.5]} 34... Re7 {[%clk 0:00:02]} 35. Bd4
{[%clk 0:01:11.3]} 35... Kg6 {[%clk 0:00:01.9]} 36. Rf6+ {[%clk 0:01:11.5]}
36... Kg5 {[%clk 0:00:02.8]} 37. Kf2 {[%clk 0:01:11.2]} 37... Kg4 {[%clk
0:00:03.7]} 38. e6 {[%clk 0:01:09.3]} 38... Rc7 {[%clk 0:00:03.2]} 39. Rf7
{[%clk 0:01:07.2]} 39... Rc6 {[%clk 0:00:03.2]} 40. e7 {[%clk 0:01:07.3]} 40...
Re6 {[%clk 0:00:04.1]} 41. Bc5 {[%clk 0:01:06.9]} 41... d4 {[%clk 0:00:03.8]}
42. Rf8 {[%clk 0:01:07.1]} 42... e3+ {[%clk 0:00:04.1]} 43. Ke1 {[%clk
0:01:04.4]} 1-0

[Event "Late-Titled-Tuesday-Blitz-January-30-2024"]
[Site "Chess.com"]
[Date "2024.01.30"]
[Round "4"]
[White "KamlaPasand"]
[Black "Arlo2024"]
[Result "1-0"]
[WhiteElo "2485"]
[BlackElo "2268"]
[TimeControl "180+1"]
[EndTime "14:38:16 PST"]
[Termination "KamlaPasand won on time"]

1. e4 {[%clk 0:03:00.9]} 1... e6 {[%clk 0:03:00.3]} 2. d4 {[%clk 0:03:00.1]}
2... d5 {[%clk 0:03:01]} 3. exd5 {[%clk 0:02:59]} 3... exd5 {[%clk 0:03:00.7]}
4. Nf3 {[%clk 0:02:59.9]} 4... Nc6 {[%clk 0:03:01.2]} 5. c4 {[%clk 0:02:55.9]}
5... Bb4+ {[%clk 0:03:00.1]} 6. Bd2 {[%clk 0:02:54.7]} 6... Bxd2+ {[%clk
0:02:57.7]} 7. Qxd2 {[%clk 0:02:54.9]} 7... Nge7 {[%clk 0:02:56.4]} 8. Nc3
{[%clk 0:02:45.3]} 8... O-O {[%clk 0:02:55.5]} 9. O-O-O {[%clk 0:02:45.2]} 9...
dxc4 {[%clk 0:02:48.5]} 10. Bxc4 {[%clk 0:02:44.6]} 10... Bf5 {[%clk 0:02:31.8]}
11. h3 {[%clk 0:02:43.4]} 11... Na5 {[%clk 0:02:25.2]} 12. Be2 {[%clk
0:02:38.1]} 12... Nd5 {[%clk 0:02:19.4]} 13. g4 {[%clk 0:02:36.1]} 13... Be6
{[%clk 0:02:08.3]} 14. Kb1 {[%clk 0:02:25.8]} 14... c6 {[%clk 0:01:35.2]} 15.
Ne5 {[%clk 0:02:21.9]} 15... f6 {[%clk 0:01:23.2]} 16. Nc4 {[%clk 0:02:17.1]}
16... Nxc4 {[%clk 0:01:22.4]} 17. Bxc4 {[%clk 0:02:15.8]} 17... Nxc3+ {[%clk
0:01:21.9]} 18. Qxc3 {[%clk 0:02:14.6]} 18... Bxc4 {[%clk 0:01:22.3]} 19. Qxc4+
{[%clk 0:02:14.1]} 19... Qd5 {[%clk 0:01:20.5]} 20. Qxd5+ {[%clk 0:02:14]} 20...
cxd5 {[%clk 0:01:21.4]} 21. Rhe1 {[%clk 0:02:14.8]} 21... Rfe8 {[%clk
0:01:21.2]} 22. Rc1 {[%clk 0:02:14.1]} 22... Rxe1 {[%clk 0:01:12.3]} 23. Rxe1
{[%clk 0:02:13.6]} 23... Kf7 {[%clk 0:01:10.2]} 24. Rc1 {[%clk 0:02:11.9]} 24...
Re8 {[%clk 0:01:07.8]} 25. Rc5 {[%clk 0:02:10.5]} 25... Re1+ {[%clk 0:01:02.8]}
26. Kc2 {[%clk 0:02:08]} 26... Re2+ {[%clk 0:01:02.9]} 27. Kc1 {[%clk
0:02:06.4]} 27... Rxf2 {[%clk 0:01:02.8]} 28. Rc7+ {[%clk 0:02:03.8]} 28... Kg6
{[%clk 0:00:57]} 29. Rxb7 {[%clk 0:02:03.8]} 29... Rf3 {[%clk 0:00:49.7]} 30.
Rxa7 {[%clk 0:02:03]} 30... Rxh3 {[%clk 0:00:49.9]} 31. b4 {[%clk 0:02:01.2]}
31... Rd3 {[%clk 0:00:39.8]} 32. b5 {[%clk 0:01:56.7]} 32... Rxd4 {[%clk
0:00:40.4]} 33. b6 {[%clk 0:01:56.5]} 33... Rb4 {[%clk 0:00:33.9]} 34. b7 {[%clk
0:01:55.5]} 34... f5 {[%clk 0:00:29.9]} 35. a3 {[%clk 0:01:51.7]} 35... Rb6
{[%clk 0:00:20.1]} 36. gxf5+ {[%clk 0:01:13.6]} 36... Kxf5 {[%clk 0:00:21]} 37.
a4 {[%clk 0:01:14]} 37... Ke6 {[%clk 0:00:19.6]} 38. a5 {[%clk 0:01:13.9]} 38...
Rb5 {[%clk 0:00:18.4]} 39. Ra6+ {[%clk 0:01:06.1]} 39... Kd7 {[%clk 0:00:15.5]}
40. Rb6 {[%clk 0:01:06.3]} 40... Rc5+ {[%clk 0:00:13.3]} 41. Kd2 {[%clk
0:01:05.8]} 41... Rxa5 {[%clk 0:00:12.7]} 42. b8=Q {[%clk 0:01:05.6]} 1-0

[Event "Late-Titled-Tuesday-Blitz-January-30-2024"]
[Site "Chess.com"]
[Date "2024.01.30"]
[Round "4"]
[White "chegueps"]
[Black "GMWSO"]
[Result "0-1"]
[WhiteElo "2618"]
[BlackElo "3088"]
[TimeControl "180+1"]
[EndTime "14:38:17 PST"]
[Termination "GMWSO won on time"]

1. e4 {[%clk 0:02:45]} 1... c6 {[%clk 0:02:59.1]} 2. d4 {[%clk 0:02:44.1]} 2...
d5 {[%clk 0:02:59.5]} 3. Nc3 {[%clk 0:02:44.3]} 3... dxe4 {[%clk 0:02:57.5]} 4.
Nxe4 {[%clk 0:02:45.2]} 4... Nf6 {[%clk 0:02:58]} 5. Nxf6+ {[%clk 0:02:44.2]}
5... exf6 {[%clk 0:02:58.9]} 6. c3 {[%clk 0:02:44.4]} 6... Bd6 {[%clk
0:02:57.9]} 7. Bd3 {[%clk 0:02:43.9]} 7... O-O {[%clk 0:02:57.9]} 8. Qc2 {[%clk
0:02:44.4]} 8... h5 {[%clk 0:02:55.5]} 9. Ne2 {[%clk 0:02:44.1]} 9... Re8 {[%clk
0:02:54.2]} 10. Be3 {[%clk 0:02:44.6]} 10... Nd7 {[%clk 0:02:51.3]} 11. O-O-O
{[%clk 0:02:44.6]} 11... b5 {[%clk 0:02:50.4]} 12. g4 {[%clk 0:02:43.6]} 12...
hxg4 {[%clk 0:02:46.7]} 13. Rdg1 {[%clk 0:02:40.9]} 13... Nf8 {[%clk 0:02:36.9]}
14. Ng3 {[%clk 0:02:40.3]} 14... Be6 {[%clk 0:02:18.9]} 15. Nf5 {[%clk
0:02:31.5]} 15... g6 {[%clk 0:01:35.6]} 16. Rxg4 {[%clk 0:02:25.4]} 16... Bc7
{[%clk 0:01:30.6]} 17. Rhg1 {[%clk 0:02:02.7]} 17... Qd5 {[%clk 0:01:28.3]} 18.
Nh6+ {[%clk 0:01:48.3]} 18... Kh8 {[%clk 0:01:21.2]} 19. Rh4 {[%clk 0:01:35]}
19... Kg7 {[%clk 0:01:17.1]} 20. b3 {[%clk 0:00:45.5]} 20... a5 {[%clk
0:00:53.1]} 21. Be4 {[%clk 0:00:42.6]} 21... Qd6 {[%clk 0:00:50]} 22. Qd2 {[%clk
0:00:24.7]} 22... a4 {[%clk 0:00:43.6]} 23. Bf4 {[%clk 0:00:25]} 23... Qa3+
{[%clk 0:00:41.3]} 24. Kd1 {[%clk 0:00:20.9]} 24... Bxb3+ {[%clk 0:00:31.5]} 25.
axb3 {[%clk 0:00:18.3]} 25... Qa1+ {[%clk 0:00:29]} 26. Ke2 {[%clk 0:00:02]}
26... Rxe4+ {[%clk 0:00:28]} 27. Kf3 {[%clk 0:00:01.6]} 27... Qxg1 {[%clk
0:00:27.8]} 28. Bxc7 {[%clk 0:00:01.6]} 28... Rxh4 {[%clk 0:00:23.5]} 0-1

[Event "Late-Titled-Tuesday-Blitz-January-30-2024"]
[Site "Chess.com"]
[Date "2024.01.30"]
[Round "4"]
[White "platy3"]
[Black "HalfIsCrayfish"]
[Result "1-0"]
[WhiteElo "2861"]
[BlackElo "2585"]
[TimeControl "180+1"]
[EndTime "14:38:19 PST"]
[Termination "platy3 won by resignation"]

1. e4 {[%clk 0:03:00.9]} 1... c6 {[%clk 0:02:59.1]} 2. Nf3 {[%clk 0:03:01.3]}
2... d5 {[%clk 0:02:59.6]} 3. Nc3 {[%clk 0:03:02.2]} 3... dxe4 {[%clk
0:02:59.9]} 4. Nxe4 {[%clk 0:03:02.8]} 4... Nf6 {[%clk 0:03:00.6]} 5. Qe2 {[%clk
0:03:03.4]} 5... Nxe4 {[%clk 0:03:01]} 6. Qxe4 {[%clk 0:03:04.3]} 6... Nd7
{[%clk 0:03:01.6]} 7. Bc4 {[%clk 0:03:05]} 7... Nf6 {[%clk 0:03:02.1]} 8. Ne5
{[%clk 0:03:05.3]} 8... e6 {[%clk 0:03:02.8]} 9. Qe2 {[%clk 0:03:05.8]} 9... b5
{[%clk 0:03:03.4]} 10. Bb3 {[%clk 0:03:05.9]} 10... Qc7 {[%clk 0:03:03.5]} 11.
O-O {[%clk 0:03:06.1]} 11... Bd6 {[%clk 0:03:03.3]} 12. d4 {[%clk 0:03:06.8]}
12... a5 {[%clk 0:02:56.6]} 13. a4 {[%clk 0:03:04.6]} 13... b4 {[%clk
0:02:42.7]} 14. Re1 {[%clk 0:03:03.8]} 14... O-O {[%clk 0:02:18.4]} 15. h3
{[%clk 0:03:03.9]} 15... c5 {[%clk 0:02:15.3]} 16. dxc5 {[%clk 0:02:59.5]} 16...
Qxc5 {[%clk 0:02:13.9]} 17. Bg5 {[%clk 0:02:43.3]} 17... Bxe5 {[%clk 0:01:55]}
18. Qxe5 {[%clk 0:02:41.8]} 18... Qxe5 {[%clk 0:01:55.7]} 19. Rxe5 {[%clk
0:02:42.5]} 19... Nd7 {[%clk 0:01:56.4]} 20. Rb5 {[%clk 0:02:35.5]} 20... Nf6
{[%clk 0:01:24.8]} 21. Rd1 {[%clk 0:02:21.8]} 21... Bd7 {[%clk 0:01:11.1]} 22.
Rb6 {[%clk 0:02:19.3]} 22... Ra7 {[%clk 0:01:05.8]} 23. Be3 {[%clk 0:02:16.3]}
23... Raa8 {[%clk 0:00:58]} 24. Rbd6 {[%clk 0:02:13.2]} 24... Bc8 {[%clk
0:00:45.9]} 25. Rb6 {[%clk 0:01:46.2]} 25... Bd7 {[%clk 0:00:44.8]} 26. Bd4
{[%clk 0:01:17]} 26... Bc8 {[%clk 0:00:43.4]} 27. Bc4 {[%clk 0:01:07.3]} 27...
Rd8 {[%clk 0:00:38.1]} 28. Rd3 {[%clk 0:01:05.5]} 28... Nd5 {[%clk 0:00:25]} 29.
Bc5 {[%clk 0:00:59.8]} 29... Bd7 {[%clk 0:00:17.1]} 30. Bxd5 {[%clk 0:00:43.5]}
30... exd5 {[%clk 0:00:16.8]} 31. Rxd5 {[%clk 0:00:32.7]} 31... Bxa4 {[%clk
0:00:16]} 32. Rxd8+ {[%clk 0:00:33.4]} 32... Rxd8 {[%clk 0:00:16.9]} 33. b3
{[%clk 0:00:34.2]} 33... Bd7 {[%clk 0:00:11.5]} 34. Rd6 {[%clk 0:00:30.2]} 34...
h6 {[%clk 0:00:12]} 35. Bb6 {[%clk 0:00:28.4]} 35... Rb8 {[%clk 0:00:12.3]} 36.
Bc7 {[%clk 0:00:29.1]} 1-0

[Event "Late-Titled-Tuesday-Blitz-January-30-2024"]
[Site "Chess.com"]
[Date "2024.01.30"]
[Round "4"]
[White "Gryffindorac8"]
[Black "gomeschess02"]
[Result "1-0"]
[WhiteElo "2405"]
[BlackElo "2185"]
[TimeControl "180+1"]
[EndTime "14:38:22 PST"]
[Termination "Gryffindorac8 won on time"]

1. d4 {[%clk 0:03:00.9]} 1... Nf6 {[%clk 0:02:56.6]} 2. c4 {[%clk 0:02:57.3]}
2... g6 {[%clk 0:02:56.4]} 3. Nc3 {[%clk 0:02:56.8]} 3... Bg7 {[%clk 0:02:57]}
4. e4 {[%clk 0:02:56.9]} 4... d6 {[%clk 0:02:57.6]} 5. Nf3 {[%clk 0:02:56.2]}
5... O-O {[%clk 0:02:58]} 6. h3 {[%clk 0:02:56.6]} 6... e5 {[%clk 0:02:54.7]} 7.
d5 {[%clk 0:02:56.7]} 7... Nbd7 {[%clk 0:02:53.7]} 8. Be3 {[%clk 0:02:56.4]}
8... Nc5 {[%clk 0:02:53.6]} 9. Nd2 {[%clk 0:02:56.3]} 9... a5 {[%clk 0:02:53.4]}
10. g4 {[%clk 0:02:50.4]} 10... b6 {[%clk 0:02:35.8]} 11. Be2 {[%clk 0:02:49.3]}
11... Ne8 {[%clk 0:02:15.2]} 12. h4 {[%clk 0:02:45]} 12... f5 {[%clk 0:02:07.2]}
13. gxf5 {[%clk 0:02:45.9]} 13... gxf5 {[%clk 0:02:07.7]} 14. h5 {[%clk
0:02:45.1]} 14... f4 {[%clk 0:01:39.6]} 15. Bxc5 {[%clk 0:02:44.1]} 15... bxc5
{[%clk 0:01:40.5]} 16. h6 {[%clk 0:02:44]} 16... Bf6 {[%clk 0:01:41]} 17. Bg4
{[%clk 0:02:43.6]} 17... Kh8 {[%clk 0:01:27.7]} 18. Bxc8 {[%clk 0:02:34.5]}
18... Rxc8 {[%clk 0:01:03.1]} 19. Qh5 {[%clk 0:02:25.2]} 19... Rg8 {[%clk
0:00:20]} 20. O-O-O {[%clk 0:02:16.4]} 20... Bg5 {[%clk 0:00:20.3]} 21. Nf3
{[%clk 0:02:09.1]} 21... Nf6 {[%clk 0:00:20.8]} 22. Qh3 {[%clk 0:01:56.4]} 22...
Qd7 {[%clk 0:00:21.1]} 23. Rdg1 {[%clk 0:01:19.6]} 23... Qxh3 {[%clk 0:00:05]}
24. Rxh3 {[%clk 0:01:20.5]} 24... Bxh6 {[%clk 0:00:03.7]} 25. Rxh6 {[%clk
0:01:18.6]} 25... Rxg1+ {[%clk 0:00:02.8]} 26. Nxg1 {[%clk 0:01:19.5]} 26... Ng4
{[%clk 0:00:03.2]} 27. Rh5 {[%clk 0:00:33.1]} 27... Nxf2 {[%clk 0:00:03.4]} 28.
Rg5 {[%clk 0:00:29.5]} 28... Rf8 {[%clk 0:00:02.3]} 29. Kd2 {[%clk 0:00:17.3]}
1-0

[Event "Late-Titled-Tuesday-Blitz-January-30-2024"]
[Site "Chess.com"]
[Date "2024.01.30"]
[Round "4"]
[White "Akhayan"]
[Black "jmpion"]
[Result "0-1"]
[WhiteElo "2347"]
[BlackElo "2533"]
[TimeControl "180+1"]
[EndTime "14:38:26 PST"]
[Termination "jmpion won by resignation"]

1. e4 {[%clk 0:02:43.7]} 1... c5 {[%clk 0:02:58.7]} 2. Nf3 {[%clk 0:02:43.3]}
2... d6 {[%clk 0:02:58.2]} 3. d4 {[%clk 0:02:43.5]} 3... cxd4 {[%clk 0:02:58.9]}
4. Nxd4 {[%clk 0:02:44.1]} 4... Nf6 {[%clk 0:02:59.6]} 5. Nc3 {[%clk 0:02:44]}
5... a6 {[%clk 0:03:00.3]} 6. Bc4 {[%clk 0:02:44.6]} 6... e6 {[%clk 0:03:00.5]}
7. Bb3 {[%clk 0:02:45.3]} 7... Be7 {[%clk 0:03:00.1]} 8. O-O {[%clk 0:02:42.5]}
8... b5 {[%clk 0:02:58.8]} 9. f4 {[%clk 0:02:42.5]} 9... b4 {[%clk 0:02:53.9]}
10. Na4 {[%clk 0:02:31.1]} 10... Nxe4 {[%clk 0:02:48.3]} 11. f5 {[%clk
0:02:28.6]} 11... e5 {[%clk 0:02:44.6]} 12. Ne6 {[%clk 0:02:26.9]} 12... Bxe6
{[%clk 0:02:25]} 13. fxe6 {[%clk 0:02:23.7]} 13... Nf6 {[%clk 0:02:15.2]} 14.
exf7+ {[%clk 0:02:20.9]} 14... Kf8 {[%clk 0:02:14.7]} 15. Bg5 {[%clk 0:02:03.8]}
15... Nbd7 {[%clk 0:02:07.2]} 16. Kh1 {[%clk 0:02:01.6]} 16... h6 {[%clk
0:01:59.7]} 17. Be3 {[%clk 0:01:51.7]} 17... Rc8 {[%clk 0:01:48.6]} 18. Qe2
{[%clk 0:01:50.2]} 18... d5 {[%clk 0:01:43.1]} 19. Qxa6 {[%clk 0:01:43.4]} 19...
d4 {[%clk 0:01:43.5]} 20. Bf2 {[%clk 0:01:33.7]} 20... Qc7 {[%clk 0:01:13.4]}
21. Rae1 {[%clk 0:01:29.1]} 21... h5 {[%clk 0:01:05.2]} 22. c3 {[%clk
0:01:23.6]} 22... bxc3 {[%clk 0:01:02.2]} 23. bxc3 {[%clk 0:01:24]} 23... dxc3
{[%clk 0:00:57.5]} 24. Rc1 {[%clk 0:01:13.5]} 24... Ne4 {[%clk 0:00:35.1]} 25.
Be1 {[%clk 0:01:11.5]} 25... h4 {[%clk 0:00:28.2]} 26. Nxc3 {[%clk 0:00:53.2]}
26... Ng3+ {[%clk 0:00:19.7]} 27. Bxg3 {[%clk 0:00:52.9]} 27... hxg3 {[%clk
0:00:19.4]} 28. h3 {[%clk 0:00:53.5]} 28... Nc5 {[%clk 0:00:14.2]} 29. Qe2
{[%clk 0:00:49.3]} 29... Qc6 {[%clk 0:00:13.4]} 30. Bd5 {[%clk 0:00:45]} 30...
Qd7 {[%clk 0:00:13.5]} 31. Rfd1 {[%clk 0:00:33.8]} 31... Rxh3+ {[%clk
0:00:11.2]} 32. gxh3 {[%clk 0:00:29.5]} 32... Qxh3+ {[%clk 0:00:12.1]} 33. Kg1
{[%clk 0:00:30]} 33... Ne6 {[%clk 0:00:10.5]} 34. Bxe6 {[%clk 0:00:29.2]} 34...
Bc5+ {[%clk 0:00:10.5]} 0-1

[Event "Late-Titled-Tuesday-Blitz-January-30-2024"]
[Site "Chess.com"]
[Date "2024.01.30"]
[Round "4"]
[White "ChEsper99"]
[Black "Smile2005"]
[Result "1-0"]
[WhiteElo "2165"]
[BlackElo "2433"]
[TimeControl "180+1"]
[EndTime "14:38:27 PST"]
[Termination "ChEsper99 won by checkmate"]

1. d4 {[%clk 0:02:58.9]} 1... Nf6 {[%clk 0:02:56.3]} 2. Nf3 {[%clk 0:02:58.4]}
2... g6 {[%clk 0:02:56.2]} 3. c4 {[%clk 0:02:57.2]} 3... Bg7 {[%clk 0:02:56.7]}
4. g3 {[%clk 0:02:57.3]} 4... c5 {[%clk 0:02:57]} 5. Bg2 {[%clk 0:01:51.6]} 5...
O-O {[%clk 0:02:54.8]} 6. O-O {[%clk 0:01:51.2]} 6... cxd4 {[%clk 0:02:55.7]} 7.
Nxd4 {[%clk 0:01:52.1]} 7... d6 {[%clk 0:02:56.4]} 8. Nc3 {[%clk 0:01:52.5]}
8... Bd7 {[%clk 0:02:56.1]} 9. e4 {[%clk 0:01:52.6]} 9... Nc6 {[%clk 0:02:56.2]}
10. h3 {[%clk 0:01:48.2]} 10... Rc8 {[%clk 0:02:56.1]} 11. b3 {[%clk 0:01:45.6]}
11... Nxd4 {[%clk 0:02:56]} 12. Qxd4 {[%clk 0:01:46.5]} 12... Bc6 {[%clk
0:02:56.5]} 13. Qxa7 {[%clk 0:01:06]} 13... Nxe4 {[%clk 0:02:46.4]} 14. Nxe4
{[%clk 0:00:57.5]} 14... Bxa1 {[%clk 0:02:44.6]} 15. Bh6 {[%clk 0:00:57.1]}
15... Bg7 {[%clk 0:02:43.8]} 16. Bxg7 {[%clk 0:00:54.9]} 16... Kxg7 {[%clk
0:02:44.7]} 17. Rd1 {[%clk 0:00:53.1]} 17... Bxe4 {[%clk 0:02:39.9]} 18. Bxe4
{[%clk 0:00:50.3]} 18... Ra8 {[%clk 0:02:40.2]} 19. Qd4+ {[%clk 0:00:38.6]}
19... f6 {[%clk 0:02:40]} 20. a4 {[%clk 0:00:32.4]} 20... Qc7 {[%clk 0:02:38.3]}
21. Qd5 {[%clk 0:00:29]} 21... Ra5 {[%clk 0:02:33.3]} 22. Qd3 {[%clk 0:00:11.7]}
22... b6 {[%clk 0:02:30.4]} 23. Bd5 {[%clk 0:00:11.5]} 23... Qc5 {[%clk
0:02:26.4]} 24. Re1 {[%clk 0:00:11.3]} 24... Ra7 {[%clk 0:02:26.1]} 25. Re6
{[%clk 0:00:10.7]} 25... Rf7 {[%clk 0:02:20.5]} 26. Qe2 {[%clk 0:00:10.8]} 26...
Qa3 {[%clk 0:02:16.4]} 27. Qe3 {[%clk 0:00:09.9]} 27... Qc5 {[%clk 0:02:15.8]}
28. Qe2 {[%clk 0:00:09.8]} 28... Rc7 {[%clk 0:02:15]} 29. h4 {[%clk 0:00:09]}
29... h5 {[%clk 0:02:13.7]} 30. Qe1 {[%clk 0:00:09.2]} 30... Qd4 {[%clk
0:02:12.8]} 31. Qe2 {[%clk 0:00:08.4]} 31... Qa1+ {[%clk 0:02:11.7]} 32. Kg2
{[%clk 0:00:08.8]} 32... Qa3 {[%clk 0:02:10.7]} 33. Qe3 {[%clk 0:00:08.9]} 33...
Qb2 {[%clk 0:02:10.3]} 34. Qxb6 {[%clk 0:00:08]} 34... Rc5 {[%clk 0:02:09.7]}
35. Qb7 {[%clk 0:00:06.9]} 35... Kf8 {[%clk 0:02:01.7]} 36. b4 {[%clk
0:00:03.3]} 36... Rxd5 {[%clk 0:01:52.9]} 37. cxd5 {[%clk 0:00:04.2]} 37... Qd4
{[%clk 0:01:52.8]} 38. a5 {[%clk 0:00:04.5]} 38... f5 {[%clk 0:01:51.6]} 39. a6
{[%clk 0:00:04.9]} 39... f4 {[%clk 0:01:51.7]} 40. a7 {[%clk 0:00:05]} 40... f3+
{[%clk 0:01:49.9]} 41. Kg1 {[%clk 0:00:04.5]} 41... Qd1+ {[%clk 0:01:47.7]} 42.
Kh2 {[%clk 0:00:04.8]} 42... Qf1 {[%clk 0:01:40.3]} 43. a8=Q+ {[%clk 0:00:05.3]}
43... Kg7 {[%clk 0:01:38.4]} 44. Rxg6+ {[%clk 0:00:05.4]} 44... Kxg6 {[%clk
0:01:38]} 45. Qg8+ {[%clk 0:00:06]} 45... Rg7 {[%clk 0:01:27.3]} 46. Qe6+ {[%clk
0:00:05.7]} 46... Kh7 {[%clk 0:01:24.3]} 47. Qf5+ {[%clk 0:00:06.2]} 47... Kh6
{[%clk 0:01:21.1]} 48. Qxf3 {[%clk 0:00:06.7]} 48... Rg6 {[%clk 0:01:20.4]} 49.
Qf4+ {[%clk 0:00:06.9]} 49... Kg7 {[%clk 0:01:17.7]} 50. Qxe7+ {[%clk 0:00:07]}
50... Kg8 {[%clk 0:01:17.7]} 51. Qff8# {[%clk 0:00:07.5]} 1-0